Cogmind - Beta 14 @@@ ROGUE MODE // 2025.01.11 @ 10:35:17 Player: acra Result: Self-destructed Performance ------------- Evolutions (2) 1000 Regions Visited (5) 1000 Robots Destroyed (13) 65 Value Destroyed (407) 407 Prototype IDs (2) 40 Alien Tech Used (0) 0 Bonus (0) 0 TOTAL SCORE: 2512 Bonus ------- None Cogmind --------- Core Integrity 376/550 Matter 254/300 Energy 160/160 System Corruption 5% Temperature Cool (0) Movement Core (300) Ox5 Location -8/Materials Parts ------- > --- POWER (1) -------- Light Nuclear Core > --- PROPULSION (2) --- Aluminum Leg > --- UTILITY (6) ------ Improved Heat Sink Medium Storage Unit Hacking Suite Hacking Suite Hacking Suite > --- WEAPON (2) ------- Small Laser > --- INVENTORY (10) --- Ion Engine Light Ion Engine Heat Sink Sensor Array Particle Gun Missile Launcher Heavy Mace Peak State ------------ > --- POWER ------------ Ion Engine > --- PROPULSION ------- Aluminum Leg Aluminum Leg > --- UTILITY ---------- Medium Storage Unit Sensor Array Hacking Suite Hacking Suite Hacking Suite Hacking Suite > --- WEAPON ----------- Shock Rifle Shock Rifle > --- INVENTORY -------- Light Ion Engine Aluminum Leg Wheel Heat Sink Medium Laser Small Laser Missile Launcher Heavy Mace [Rating: 24] Favorites ----------- Power Ion Engine Engine Ion Engine Power Core Light Nuclear Core Propulsion Aluminum Leg Leg Aluminum Leg Wheel Wheel Utility Hacking Suite Device Sensor Array Storage Medium Storage Unit Hackware Hacking Suite Weapon Shock Rifle Energy Gun Shock Rifle Ballistic Gun Assault Rifle Launcher Rocket Launcher Impact Weapon Heavy Mace Slashing Weapon Mining Claw Special Melee Weapon Datajack Build | -11 -10 -10 -9 -9 -8 ------- Run | Yrd Mat Min Mat Min Mat Slots Evolved 4 | . . . 2 . 2 Power . | . . . . . . Propulsion . | . . . . . . Utility 4 | . . . 2 . 2 Weapon . | . . . . . . Parts Attached 39 | 8 2 2 10 1 16 Power 4 | 2 . . . . 2 Engine 2 | 2 . . . . . Core 2 | . . . . . 2 Reactor . | . . . . . . Propulsion 5 | 2 . . 1 . 2 Treads . | . . . . . . Leg 4 | 2 . . 1 . 1 Wheel 1 | . . . . . 1 Hover . | . . . . . . Flight . | . . . . . . Utility 11 | 1 1 1 3 . 5 Device 5 | . . 1 . . 4 Storage 2 | 1 1 . . . . Processor . | . . . . . . Hackware 4 | . . . 3 . 1 Protection . | . . . . . . Artifact . | . . . . . . Weapon 19 | 3 1 1 6 1 7 Energy Gun 11 | 1 . 1 4 . 5 Energy Cannon . | . . . . . . Ballistic Gun 3 | 2 . . 1 . . Ballistic Cannon . | . . . . . . Launcher 1 | . . . . 1 . Special Weapon . | . . . . . . Impact Weapon 1 | . . . . . 1 Slashing Weapon 2 | . . . 1 . 1 Piercing Weapon . | . . . . . . Special Melee Weapon 1 | . 1 . . . . Unidentified Prototypes . | . . . . . . Corrupted Parts 2 | . 1 . . . 1 System Corruption 4 | . 1 . . . 3 Parts Lost 9 | . . . 2 . 7 Power 1 | . . . . . 1 Propulsion 4 | . . . 1 . 3 Utility 1 | . . . . . 1 Weapon 3 | . . . 1 . 2 Highest Loss Streak 4 | . . . 2 . 4 To Critical Strikes . | . . . . . . Average Slot Usage (%) 95 | . 85 88 97 100 99 Engine 8 | . 14 14 11 11 5 Core 1 | . . . . . 3 Leg 19 | . 28 28 22 22 13 Wheel 2 | . . . . . 4 Device 5 | . . 3 . . 9 Storage 10 | . 14 14 11 11 9 Hackware 24 | . . . 31 33 35 Energy Gun 18 | . 14 28 19 15 17 Ballistic Gun 2 | . 14 . . . . Peak Build Rating 24 | 6 7 8 20 20 24 Average Rating 17 | 4 6 6 18 19 23 On Entrance 9 | . 6 6 8 20 19 Naked Turns . | . . . . . . Heaviest Build 24 | 14 24 19 21 22 22 Greatest Support 20 | 20 20 20 20 20 20 Greatest Overweight (x) 4 | 4 1 . 1 1 2 Average Overweight (x) . | 1 . . . 1 1 Largest Inventory Capacity 10 | 8 10 10 10 10 10 Average Capacity 9 | 7 9 10 10 10 10 Most Carried 10 | 4 6 10 10 10 9 Average Carried 7 | 1 5 7 9 10 7 Final Capacity 10 | 8 10 10 10 10 10 Final Carried 10 | 3 6 10 10 10 7 Class Distribution -------------------- 68% | Hacker-Mutant 31% | Mutant Dominant Class ---------------- Mutant | -10/Materials Mutant | -10/Mines Hacker-Mutant | -9/Materials Hacker-Mutant | -9/Mines Hacker-Mutant | -8/Materials Resources | -11 -10 -10 -9 -9 -8 ----------- Run | Yrd Mat Min Mat Min Mat Matter Collected 679 | 230 33 64 74 . 278 Remotely . | . . . . . . Salvage Created 492 | . 33 . 165 36 258 Parts 21 | . 4 . 8 3 6 Haulers Intercepted . | . . . . . . Recyclers Shooed . | . . . . . . Parts Field Recycled . | . . . . . . Retrieved Matter . | . . . . . . Parts Self-Destructed . | . . . . . . Prevented . | . . . . . . Kills | -11 -10 -10 -9 -9 -8 ------- Run | Yrd Mat Min Mat Min Mat Combat Hostiles Destroyed 14 | . . . 3 6 5 Guns 9 | . . . 1 3 5 AOE 4 | . . . 1 3 . Classes Destroyed 6 | . 2 . 2 2 . Builder 1 | . . . 1 . . Operator 1 | . 1 . . . . Watcher 1 | . 1 . . . . Swarmer 2 | . . . . 2 . Grunt 8 | . . . 3 . 5 Assembled 4 | . . . . 4 . Best Kill Streak 4 | . 1 . 4 4 2 Combat Bots Only 4 | . . . 3 4 2 Max Kills in Single Turn 2 | . 1 . 1 2 1 Gunslinging . | . . . . . . Exploded 1 | . . . 1 1 . Melee . | . . . . . . Uniques/NPCs Destroyed . | . . . . . . Combat | -11 -10 -10 -9 -9 -8 -------- Run | Yrd Mat Min Mat Min Mat Hostile Shots Fired 84 | . . . 29 13 42 Missed 19 | . . . 5 5 9 Damage Taken 1026 | . . . 371 105 550 Core 235 | . . . 61 . 174 Absorbed by Shields . | . . . . . . Core Remaining (%) 94 | 100 . 100 . 84 . Volleys Fired 50 | . 4 . 12 8 26 Largest 2 | . 2 . 2 2 2 Hottest 100 | . 60 . 100 83 100 Shots Fired 94 | . 8 . 24 16 46 Gun 86 | . 8 . 24 8 46 Cannon . | . . . . . . Launcher 8 | . . . . 8 . Special . | . . . . . . Kinetic 4 | . 4 . . . . Thermal 41 | . . . . . 41 Explosive 8 | . . . . 8 . Electromagnetic 41 | . 4 . 24 8 5 Robot Hit Streak 15 | . 2 . 3 4 15 Robot Miss Streak 4 | . 3 . 4 3 2 Penetration Max . | . . . . . . Secondary Targets 1 | . . . 1 . . Max Gunslinging Chain 1 | . . . 1 . . Shots Hit Robots 58 | . 3 . 13 8 34 Core Hits 27 | . 2 . 4 7 14 Critical Kills . | . . . . . . Critical Parts Destroyed . | . . . . . . Critical Strikes 1 | . . . . . 1 Burn 1 | . . . . . 1 Melee Attacks 14 | . . . 1 . 13 Impact 8 | . . . . . 8 Slashing 6 | . . . 1 . 5 Piercing . | . . . . . . Sneak Attacks . | . . . . . . Combat Hostiles . | . . . . . . Follow-up Attacks . | . . . . . . Damage Inflicted 1155 | . 62 1 319 339 434 Guns 805 | . 62 . 231 87 425 Cannons . | . . . . . . Explosions 340 | . . . 88 252 . Melee . | . . . . . . Ramming 10 | . . 1 . . 9 Kinetic . | . . . . . . Thermal 455 | . . . 88 . 367 Explosive 252 | . . . . 252 . Electromagnetic 438 | . 62 . 231 87 58 Impact . | . . . . . . Slashing . | . . . . . . Piercing . | . . . . . . Highest Corruption 5 | . 1 1 . . 5 Average Corruption 3 | . 1 1 . . 3 Corruption Purged . | . . . . . . Corruption Blocked . | . . . . . . Effects 11 | . . . . . 11 Message Errors 2 | . . . . . 2 Matter Fused 4 | . . . . . 4 Heat Flow Errors 2 | . . . . . 2 Data Loss (minor) 1 | . . . . . 1 Data Loss (major) 1 | . . . . . 1 Misfires 1 | . . . . . 1 Overload Shots . | . . . . . . Overflow Damage 39 | . . . . 39 . Projectiles . | . . . . . . Explosions 39 | . . . . 39 . Melee . | . . . . . . Knockbacks . | . . . . . . Impact . | . . . . . . Kinetic . | . . . . . . Secondary . | . . . . . . Self-Inflicted Damage 83 | . . . 54 25 4 Shots 2 | . . . 1 1 . Rammed 1 | . . . . . 1 Targets Rammed 2 | . . 1 . . 1 Kicked 1 | . . 1 . . . Crushed . | . . . . . . Highest Temperature 438 | . . . 438 60 271 Average Temperature 131 | . . . 240 27 75 Received Heat Transfer 339 | . . . 159 . 180 Effects 3 | . . . 3 . . Shutdowns 1 | . . . 1 . . Matter Decay 2 | . . . 2 . . Siege Activations . | . . . . . . Robots Corrupted 1 | . . . 1 . . Combat Hostiles 1 | . . . 1 . . Parts Fried 2 | . 1 . 1 . . Impact Corruptions . | . . . . . . Robots Melted . | . . . . . . Combat Hostiles . | . . . . . . Parts Melted 1 | . . . . . 1 Heat Transferred 1203 | . . . 150 . 1053 Parts Sabotaged . | . . . . . . Parts Stolen . | . . . . . . Parts Stripped . | . . . . . . Power Chain Reactions 2 | . . . 2 . . Alert | -11 -10 -10 -9 -9 -8 ------- Run | Yrd Mat Min Mat Min Mat Peak Influence 203 | . 40 15 91 158 203 Initial 61 | . . 15 5 35 61 Average 52 | . 24 15 39 88 72 Maximum Alert Level 1 | . . . . . 1 Low Security (%) 96 | 100 100 100 100 100 93 Level 1 3 | . . . . . 6 Level 2 . | . . . . . . Level 3 . | . . . . . . Level 4 . | . . . . . . Level 5 . | . . . . . . High Security . | . . . . . . Max Security . | . . . . . . Squads Dispatched 2 | . . . . . 2 Investigation 1 | . . . . . 1 Extermination . | . . . . . . Reinforcement 1 | . . . . . 1 Assault . | . . . . . . Garrison . | . . . . . . Intercept . | . . . . . . Searches Triggered . | . . . . . . Construction Impeded . | . . . . . . Haulers Reinforced . | . . . . . . Active Scanning Responses . | . . . . . . Cargo Convoy Interrupts . | . . . . . . Stealth | -11 -10 -10 -9 -9 -8 --------- Run | Yrd Mat Min Mat Min Mat Distress Signals . | . . . . . . Communications Jammed . | . . . . . . Distress Signals . | . . . . . . Times Spotted 28 | . 2 . 4 7 15 Peak Tracking Total 7 | . 1 . 3 4 7 Tactical Retreats 5 | . . . 1 1 3 Traps | -11 -10 -10 -9 -9 -8 ------- Run | Yrd Mat Min Mat Min Mat Traps Triggered 2 | . . . . . 2 Indirectly . | . . . . . . Trap Hack Attempts . | . . . . . . Triggered . | . . . . . . Disarmed . | . . . . . . Reprogrammed . | . . . . . . Reused . | . . . . . . Traps Extracted . | . . . . . . Installed . | . . . . . . Triggered . | . . . . . . Machines | -11 -10 -10 -9 -9 -8 ---------- Run | Yrd Mat Min Mat Min Mat Machines Disabled . | . . . . . . Max in Single Turn . | . . . . . . Machines Repaired . | . . . . . . Machines Dismantled . | . . . . . . Machines Sabotaged . | . . . . . . Overloaded Fab Kills . | . . . . . . Hacking | -11 -10 -10 -9 -9 -8 --------- Run | Yrd Mat Min Mat Min Mat Machines Accessed 6 | . 5 . 1 . . Terminals 6 | . 5 . 1 . . Fabricators . | . . . . . . Repair Stations . | . . . . . . Recycling Units . | . . . . . . Scanalyzers . | . . . . . . Garrison Access . | . . . . . . Total Hacks 14 | . 11 . 3 . . Successful 8 | . 5 . 3 . . Failed 6 | . 6 . . . . Catastrophic 1 | . 1 . . . . Database Lockouts . | . . . . . . Manual 10 | . 7 . 3 . . Terminals 14 | . 11 . 3 . . Fabricators . | . . . . . . Repair Stations . | . . . . . . Recycling Units . | . . . . . . Scanalyzers . | . . . . . . Garrison Access . | . . . . . . Terminal Hacks 8 | . 5 . 3 . . Prototype ID Bank 1 | . 1 . . . . Level Access Points 1 | . . . 1 . . Terminal Index 1 | . . . 1 . . Registered Components 1 | . 1 . . . . Zone Layout 4 | . 3 . 1 . . Fabricator Hacks . | . . . . . . Repair Station Hacks . | . . . . . . Recycling Unit Hacks . | . . . . . . Scanalyzer . | . . . . . . Garrison Access Hacks . | . . . . . . Unauthorized Hacks . | . . . . . . Terminals . | . . . . . . Fabricators . | . . . . . . Repair Stations . | . . . . . . Recycling Units . | . . . . . . Scanalyzers . | . . . . . . Garrison Access . | . . . . . . Data Cores Recovered 1 | . 1 . . . . Used 1 | . 1 . . . . Hacking Detections 6 | . 5 . 1 . . Full Trace Events . | . . . . . . Feedback Events . | . . . . . . Feedback Blocked . | . . . . . . Robot Schematics Acquired . | . . . . . . Robots Built . | . . . . . . Authchips . | . . . . . . Time . | . . . . . . Total Robot Build Rating . | . . . . . . Part Schematics Acquired . | . . . . . . Parts Built . | . . . . . . Authchips . | . . . . . . Time . | . . . . . . Total Part Build Rating . | . . . . . . Parts Repaired . | . . . . . . Time . | . . . . . . Parts Recycled . | . . . . . . Recycled Matter . | . . . . . . Retrieved Matter . | . . . . . . Retrieved Components . | . . . . . . Parts Scanalyzed . | . . . . . . Part Schematics Acquired . | . . . . . . Parts Damaged . | . . . . . . Bothacking | -11 -10 -10 -9 -9 -8 ------------ Run | Yrd Mat Min Mat Min Mat Used RIF Installer . | . . . . . . Robots Hacked . | . . . . . . Non-combat . | . . . . . . Combat . | . . . . . . Robot Hacks Applied . | . . . . . . Relay Couplers Released . | . . . . . . Fabnet Peak Effective % . | . . . . . . Robots Rewired . | . . . . . . Allies Hacked . | . . . . . . Hacks Repelled . | . . . . . . Allies | -11 -10 -10 -9 -9 -8 -------- Run | Yrd Mat Min Mat Min Mat Total Allies . | . . . . . . Largest Group . | . . . . . . Highest-Rated Group . | . . . . . . Highest-Rated Ally . | . . . . . . Total Orders . | . . . . . . Ally Attacks . | . . . . . . Total Damage . | . . . . . . Kills . | . . . . . . Allies Corrupted . | . . . . . . Allies Melted . | . . . . . . Intel | -11 -10 -10 -9 -9 -8 ------- Run | Yrd Mat Min Mat Min Mat Robot Analysis Total . | . . . . . . Derelict Logs Recovered . | . . . . . . Drone Launches . | . . . . . . Drone Recoveries . | . . . . . . Exploration | -11 -10 -10 -9 -9 -8 ------------- Run | Yrd Mat Min Mat Min Mat Turns Passed 1879 | 64 293 226 207 103 986 Spaces Moved 697 | 36 213 181 85 41 141 Core 18 | 18 . . . . . Treads . | . . . . . . Legs 619 | 18 213 181 85 41 81 Wheels 60 | . . . . . 60 Hover . | . . . . . . Flight . | . . . . . . Fastest Speed 50 | 50 120 120 120 190 95 Average Speed 136 | 140 120 120 166 190 146 Slowest Speed 260 | 250 190 120 190 190 260 Overloaded Moves . | . . . . . . Propulsion Burnouts . | . . . . . . Robots Hopped . | . . . . . . Cave-ins Triggered . | . . . . . . Exploration Rate (%) 19 | 3 32 45 12 14 11 Regions Visited 5 Branch Regions 2 Pre-discovered Areas . | . . . . . . Known Exits Taken 1 | . . . . 1 . Unknown Exits Taken 4 | 1 1 1 1 . . Scrap Searched 1 | . . 1 . . . Spaces Dug 11 | . . . 1 . 10 Terrain Destroyed 96 | . . . 8 78 10 Melee 11 | . . . 1 . 10 Projectile . | . . . . . . AOE 85 | . . . 7 78 . Terrain Rammed . | . . . . . . Walls Destroyed . | . . . . . . Machines Disabled . | . . . . . . Actions | -11 -10 -10 -9 -9 -8 --------- Run | Yrd Mat Min Mat Min Mat Total 1498 | 46 240 189 125 51 847 Wait 667 | . 18 . 5 . 644 Move 692 | 35 212 180 84 40 141 Hop . | . . . . . . Pick Up 21 | 3 3 5 5 1 4 Fast Attach 11 | 4 1 1 5 . . Attach 12 | 2 . . 2 . 8 Detach 1 | . . . 1 . . Swap 16 | 2 1 1 3 1 8 Drop 12 | . 1 1 7 1 2 Fire 50 | . 4 . 12 8 26 Melee 14 | . . . 1 . 13 Ram 1 | . . . . . 1 Kick 1 | . . 1 . . . Crush . | . . . . . . Escape Stasis . | . . . . . . Rewire . | . . . . . . Trap . | . . . . . . Miscellaneous . | . . . . . . Route ------- -11/Scrapyard -10/Materials -10/Mines -9/Materials (discovered 4 exits: Mat x3 / [*Min]) -9/Mines -8/Materials History --------- Turn | Location | Event 2 | -11/Scrapyard | Met Revision 17 8 | -11/Scrapyard | Discovered new exit (range 16) 65 | -11/Scrapyard | Entered Materials 304 | -10/Materials | Build established: Mutant 338 | -10/Materials | Discovered new exit (range 13) 358 | -10/Materials | Entered Mines 489 | -10/Mines | Received a Rocket Launcher from a helpful Derelict 497 | -10/Mines | Found DCF Scrap (14 items) 576 | -10/Mines | Discovered new exit (range 6) 584 | -10/Mines | Entered Materials 584 | -9/Materials | Evolved 2 slots: Utility x2 645 | -9/Materials | Identified exit to Materials 740 | -9/Materials | Discovered new exit (range 16) 791 | -9/Materials | Entered Mines 811 | -9/Mines | Assembled infested the area 859 | -9/Mines | Discovered exit to Materials (range 10) 894 | -9/Mines | Entered Materials 894 | -8/Materials | Evolved 2 slots: Utility x2 919 | -8/Materials | Build established: Hacker-Mutant 1880 | -8/Materials | Self-destructed Last Messages --------------- An alarm sounds. ALERT: Alarm triggered, dispatching investigation squad. Slammed into A-02 Transporter. System corrupted: Matter fused (-6). System corrupted: Matter fused (-7). SOW3MLGEX6LCVSA5HR